fUST/lending_fUST_20250913
["ID","MTS","AMOUNT","RATE_DAILY","PERIOD"]
[385231774,1757693205975,2998.69754046,0.000151,7]
[385231777,1757693282083,836.688565,0.00013562,2]
[385231778,1757693305362,836.688565,0.00013562,2]
[385231779,1757693329456,747.29215085,0.00013562,2]
[385231845,1757693432110,-836.688565,0.00013699,2]
[385231847,1757693432119,-318.3341139,0.00017535,3]
[385231867,1757693438022,-309.02593894,0.00017535,3]
[385231868,1757693438032,-48.91000822,0.00017635,2]
[385231869,1757693438043,-747.97839697,0.00017635,2]
[385231870,1757693438052,-35.67461047,0.00018135,2]
[385231871,1757693438204,-630.32538953,0.00018135,2]
[385231872,1757693438213,-105.79551969,0.0001861,2]
[385231901,1757693440091,-463.49085395,0.0001861,2]
[385231904,1757693440114,-430.71362636,0.0001861,2]
[385231906,1757693440123,-10000.0,0.00018852,2]
[385231908,1757693440132,-1223.49283937,0.00019128,2]
[385231910,1757693440141,-200.350015,0.00019181,2]
[385231912,1757693440150,-200.0,0.00019185,2]
[385231914,1757693440159,-168.38504862,0.00019227,2]
[385231916,1757693440168,-32667.91806255,0.00019228,2]
[385231918,1757693440177,-300.0,0.00019228,20]
[385231920,1757693440188,-300.0,0.00019228,20]
[385231922,1757693440197,-300.0,0.00019228,20]
[385231924,1757693440206,-300.0,0.00019228,20]
[385231926,1757693440215,-300.0,0.00019228,20]
[385231928,1757693440224,-300.0,0.00019228,20]
[385231930,1757693440233,-300.0,0.00019228,20]
[385231932,1757693440243,-300.0,0.00019228,20]
[385231934,1757693440252,-300.0,0.00019228,20]
[385231936,1757693440261,-300.0,0.00019228,20]
[385231938,1757693440271,-300.0,0.00019228,20]
[385231940,1757693440280,-300.0,0.00019228,20]
[385231942,1757693440289,-300.0,0.00019228,20]
[385231944,1757693440298,-300.0,0.00019228,20]
[385231946,1757693440307,-300.0,0.00019228,20]
[385231947,1757693440316,-160.0,0.00019675,2]
[385231949,1757693440325,-847.0429734,0.00019675,2]
[385231951,1757693440334,-160.0,0.00019675,2]
[385231953,1757693440343,-233.13074058,0.00019675,2]
[385231955,1757693440352,-217.7145751,0.00019675,2]
[385231957,1757693440361,-531.04384426,0.00019675,2]
[385231959,1757693440371,-796.88840518,0.00019718,2]
[385231961,1757693440379,-4078.31986958,0.000199,2]
[385232563,1757693446112,-4407.54073032,0.000199,2]
[385232566,1757693446121,-836.688565,0.00020187,2]
[385232568,1757693446131,-600.0,0.00020297,20]
[385232570,1757693446140,-1223.49283936,0.00020464,2]
[385232572,1757693446150,-500.0,0.0002065,2]
[385232574,1757693446159,-160.0,0.00021035,2]
[385232576,1757693446168,-9304.67770027,0.00021103,10]
[385232578,1757693446183,-270.1,0.00021103,10]
[385232585,1757693446243,-876.60229973,0.00021103,10]
[385232587,1757693446254,-768.39982121,0.00021103,10]
[385232589,1757693446265,-1023.07078029,0.00021103,10]
[385233407,1757693582707,1000.0,0.00028892,60]
[385233409,1757694035462,2275.3,0.00028892,60]
[385233411,1757694076726,481.78186912,0.000151,7]
[385233427,1757694580918,209.19593929,0.0001358,2]
[385233451,1757694632218,-463.66376798,0.00013699,2]
[385233475,1757694638157,-300.34855302,0.00013699,2]
[385233476,1757694638167,-464.0,0.00013999,2]
[385233477,1757694638176,-500.0,0.00013999,2]
[385233478,1757694638185,-10020.90785457,0.00014,2]
[385233520,1757694640387,-22320.90098447,0.00014,2]
[385233522,1757694640397,-300.0,0.00014279,2]
[385233524,1757694640406,-167.08628711,0.00014279,2]
[385233622,1757694646288,-132.91371289,0.00014279,2]
[385233623,1757694646297,-300.0,0.00014279,2]
[385233624,1757694646307,-300.0,0.00014279,2]
[385233625,1757694646316,-300.0,0.00014279,2]
[385233626,1757694646325,-300.0,0.00014279,2]
[385233627,1757694646335,-300.0,0.00014279,2]
[385233628,1757694646344,-300.0,0.00014279,2]
[385233629,1757694646353,-300.0,0.00014279,2]
[385233630,1757694646363,-300.0,0.00014279,2]
[385233631,1757694646372,-300.0,0.00014279,2]
[385233632,1757694646382,-300.0,0.00014279,2]
[385233633,1757694646391,-300.0,0.00014279,2]
[385233634,1757694646400,-300.0,0.00014279,2]
[385233635,1757694646409,-300.0,0.00014279,2]
[385233636,1757694646418,-600.0,0.00014564,2]
[385233637,1757694646427,-212.2758915,0.00016,2]
[385233638,1757694646436,-720.0,0.0001602,2]
[385233639,1757694646445,-864.0,0.00017622,2]
[385233640,1757694646454,-198.769295,0.00018647,2]
[385233641,1757694646463,-1000.0,0.00018803,2]
[385233642,1757694646472,-1000.0,0.00019384,20]
[385233643,1757694646482,-2741.3334986,0.000195,2]
[385233644,1757694646491,-17023.5440979,0.000195,2]
[385233645,1757694646500,-12410.5263972,0.000195,2]
[385233646,1757694646509,-160.0,0.00019694,2]
[385233647,1757694646518,-8202.99857971,0.000199,2]
[385233648,1757694646527,-764.012321,0.00020187,2]
[385233649,1757694646536,-847.0429734,0.00020837,2]
[385233650,1757694646545,-160.0,0.00020837,2]
[385233651,1757694646555,-233.13074058,0.00020837,2]
[385233652,1757694646564,-217.7145751,0.00020837,2]
[385233653,1757694646574,-160.0,0.00020837,2]
[385233654,1757694646583,-160.0,0.00020837,2]
[385233655,1757694646592,-500.0,0.00021,3]
[385233656,1757694646601,-8202.99857966,0.00021149,2]
[385233657,1757694646611,-500.0,0.0002117,2]
[385233658,1757694646621,-447.2128959,0.00021322,2]
[385233659,1757694646631,-186.58821634,0.00021322,2]
[385233660,1757694646640,-1000.0,0.00021323,20]
[385233661,1757694646650,-244.0,0.00021323,20]
[385233662,1757694646660,-5277.55,0.00021553,10]
[385233663,1757694646669,-6333.06,0.00021563,10]
[385233664,1757694646679,-12410.5263972,0.00021573,2]
[385233665,1757694646689,-893.3552572,0.00021579,2]
[385233666,1757694646698,-3569.84760779,0.00021579,2]
[385233667,1757694646707,-842.54935894,0.00021579,2]
[385233668,1757694646717,-3370.19743578,0.00021579,2]
[385233669,1757694646726,-4397.96,0.00021658,10]
[385233670,1757694646735,-4867.42,0.00021668,10]
[385233671,1757694646746,-160.0,0.00021678,10]
[385233672,1757694646756,-7599.67,0.00021678,10]
[385233673,1757694646766,-1064.55194794,0.00021688,2]
[385233674,1757694646775,-500.0,0.00021688,2]
[385233675,1757694646786,-250.0,0.00021688,2]
[385233676,1757694646796,-250.0,0.00021688,2]
[385233677,1757694646806,-151.0,0.00021688,2]
[385233678,1757694646815,-250.0,0.00021688,2]
[385233679,1757694646824,-151.0,0.00021688,2]
[385233680,1757694646834,-250.0,0.00021688,2]
[385233681,1757694646843,-151.0,0.00021688,2]
[385233682,1757694646853,-250.0,0.00021688,2]
[385233683,1757694646864,-153.76933156,0.00021688,2]
[385233684,1757694646874,-250.0,0.00021688,2]
[385233685,1757694646884,-151.0,0.00021688,2]
[385233686,1757694646894,-250.0,0.00021688,2]
[385233687,1757694646904,-151.0,0.00021688,2]
[385233688,1757694646915,-250.0,0.00021688,2]
[385233689,1757694646926,-151.0,0.00021688,2]
[385233690,1757694646936,-250.0,0.00021688,2]
[385233691,1757694646946,-202.50353211,0.00021688,2]
[385233692,1757694646957,-151.0,0.00021688,2]
[385233693,1757694646967,-308.3926338,0.00021688,2]
[385233694,1757694646977,-151.0,0.00021688,2]
[385233695,1757694646988,-151.0,0.00021688,2]
[385233696,1757694646998,-151.0,0.00021688,2]
[385233697,1757694647007,-151.0,0.00021688,2]
[385233698,1757694647017,-151.0,0.00021688,2]
[385233699,1757694647026,-151.0,0.00021688,2]
[385233700,1757694647036,-151.0,0.00021688,2]
[385233701,1757694647045,-151.0,0.00021688,2]
[385233702,1757694647055,-151.0,0.00021688,2]
[385233703,1757694647064,-151.0,0.00021688,2]
[385233704,1757694647074,-151.0,0.00021688,2]
[385233705,1757694647084,-151.0,0.00021688,2]
[385233706,1757694647093,-151.0,0.00021688,2]
[385233707,1757694647103,-151.0,0.00021688,2]
[385233708,1757694647114,-1000.0,0.00021688,2]
[385233709,1757694647124,-1000.0,0.00021688,2]
[385233710,1757694647134,-1000.0,0.00021688,2]
[385233711,1757694647143,-1000.0,0.00021688,2]
[385233712,1757694647152,-1000.0,0.00021688,2]
[385233713,1757694647162,-1000.0,0.00021688,2]
[385233714,1757694647171,-1000.0,0.00021688,2]
[385233715,1757694647180,-1000.0,0.00021688,2]
[385233716,1757694647189,-1000.0,0.00021688,2]
[385233717,1757694647199,-1000.0,0.00021688,2]
[385233718,1757694647208,-1000.0,0.00021688,2]
[385233719,1757694647218,-1000.0,0.00021688,2]
[385233720,1757694647227,-1000.0,0.00021688,2]
[385233721,1757694647236,-1000.0,0.00021688,2]
[385233722,1757694647246,-1000.0,0.00021688,2]
[385233723,1757694647255,-1000.0,0.00021688,2]
[385233724,1757694647264,-1000.0,0.00021688,2]
[385233725,1757694647274,-110869.34866044,0.00021701,2]
[385233726,1757694647284,-500.0,0.00021773,2]
[385233727,1757694647293,-36803.51588869,0.000218,2]
[385233728,1757694647306,-5352.23340905,0.000218,2]
[385233729,1757694901275,4661.33679306,0.000151,7]
[385233782,1757695832412,-429.14,0.00013699,2]
[385233819,1757695832926,-258.471088,0.00013699,2]
[385233820,1757695832936,-1151.0,0.00014277,2]
[385233821,1757695832946,-300.0,0.00014277,2]
[385233822,1757695832956,-300.0,0.00014278,2]
[385233823,1757695832965,-300.0,0.00014278,2]
[385233824,1757695832975,-300.0,0.00014278,2]
[385233825,1757695832984,-300.0,0.00014278,2]
[385233826,1757695832994,-300.0,0.00014278,2]
[385233827,1757695833003,-300.0,0.00014278,2]
[385233828,1757695833012,-300.0,0.00014278,2]
[385233829,1757695833021,-300.0,0.00014278,2]
[385233830,1757695833031,-300.0,0.00014278,2]
[385233831,1757695833040,-300.0,0.00014278,2]
[385233832,1757695833050,-300.0,0.00014278,2]
[385233833,1757695833059,-300.0,0.00014278,2]
[385233834,1757695833069,-300.0,0.00014278,2]
[385233835,1757695833078,-300.0,0.00014278,2]
[385233836,1757695833087,-300.0,0.00014278,2]
[385233837,1757695833097,-600.0,0.00014278,2]
[385233838,1757695833106,-10585.41552735,0.00014995,2]
[385233839,1757695833116,-500.0,0.00015068,2]
[385233840,1757695833125,-417.15472785,0.00015423,2]
[385233841,1757695833135,-160.0,0.00015423,2]
[385233842,1757695833145,-160.0,0.00015423,2]
[385233843,1757695833154,-160.0,0.00015423,2]
[385233844,1757695833164,-160.0,0.00015423,2]
[385233845,1757695833174,-531.04384426,0.00015423,2]
[385233846,1757695833183,-160.0,0.00015423,2]
[385233847,1757695833193,-847.0429734,0.00015423,2]
[385233848,1757695833202,-160.0,0.00015423,2]
[385233849,1757695833212,-160.0,0.00015423,2]
[385233850,1757695833221,-233.13074058,0.00015423,2]
[385233851,1757695833231,-160.0,0.00015423,2]
[385233852,1757695833241,-217.7145751,0.00015423,2]
[385233853,1757695833251,-197.504718,0.00015508,2]
[385233854,1757695833260,-420.0,0.00015637,2]
[385233855,1757695833270,-720.0,0.00015706,2]
[385233856,1757695833279,-2336.55113635,0.00015795,2]
[385233857,1757695833288,-500.0,0.0001714,2]
[385233858,1757695833298,-500.0,0.0001714,2]
[385233859,1757695833308,-201.84366764,0.0001714,2]
[385233860,1757695833318,-864.0,0.00017276,2]
[385233861,1757695833327,-500.0,0.00017687,2]
[385233862,1757695833337,-500.0,0.00017687,2]
[385233863,1757695833346,-500.0,0.00017687,2]
[385233864,1757695833356,-616.8666016,0.00017687,2]
[385233865,1757695833366,-500.0,0.00017687,2]
[385233866,1757695833376,-500.0,0.00017687,2]
[385233867,1757695833385,-500.0,0.00017687,2]
[385233868,1757695833395,-620.0,0.00017687,2]
[385233869,1757695833404,-567.23967962,0.00017687,2]
[385233870,1757695833415,-500.00546577,0.00017688,2]
[385233871,1757695833425,-1000.0,0.00017688,2]
[385233872,1757695833435,-1903.94688932,0.00017863,2]
[385233873,1757695833446,-500.0,0.00017961,2]
[385233874,1757695833457,-521.69,0.00018,2]
[385233875,1757695833466,-500.0,0.00018235,2]
[385233876,1757695833476,-1500.0,0.00018236,2]
[385233877,1757695833485,-501.59109932,0.0001825,2]
[385233878,1757695833497,-500.68659067,0.0001825,2]
[385233879,1757695833507,-190.0,0.00018445,2]
[385233880,1757695833517,-500.0,0.0001846,2]
[385233881,1757695833528,-383.6069497,0.00018463,2]
[385233882,1757695833539,-500.0,0.000185,2]
[385233883,1757695833548,-500.0,0.00018509,2]
[385233884,1757695833558,-602.31943671,0.0001851,2]
[385233885,1757695833567,-160.0,0.0001875,2]
[385233886,1757695833576,-1500.0,0.00018784,2]
[385233887,1757695833585,-2204.15557167,0.00018849,2]
[385233888,1757695833595,-197.504718,0.00018932,2]
[385233889,1757695833604,-151.13144606,0.00018991,2]
[385233890,1757695833614,-157.0,0.00019003,2]
[385233891,1757695833623,-157.0,0.00019003,2]
[385233892,1757695833632,-157.0,0.00019003,2]
[385233893,1757695833642,-157.0,0.00019003,2]
[385233894,1757695833651,-157.0,0.00019003,2]
[385233895,1757695833662,-157.0,0.00019003,2]
[385233896,1757695833672,-157.0,0.00019003,2]
[385233897,1757695833682,-157.0,0.00019003,2]
[385233898,1757695833691,-1000.0,0.00019004,20]
[385233899,1757695833700,-12500.0,0.00019012,7]
[385233900,1757695833710,-417.15472785,0.00019012,7]
[385233901,1757695833719,-531.04384426,0.00019012,7]
[385233902,1757695833729,-160.0,0.00019012,7]
[385233903,1757695833738,-1320.29405781,0.00019135,2]
[385233904,1757695833748,-157.0,0.00019277,2]
[385233905,1757695833757,-157.0,0.00019277,2]
[385233906,1757695833766,-157.0,0.00019277,2]
[385233907,1757695833776,-260.0,0.00019298,2]
[385233908,1757695833785,-223.88,0.00019551,2]
[385233909,1757695833795,-236.97963686,0.00019551,2]
[385233910,1757695833804,-360.0,0.00019846,2]
[385233911,1757695833813,-157.1414778,0.00019899,2]
[385233912,1757695833823,-157.0661181,0.00019899,2]
[385233913,1757695833832,-157.09091652,0.00019899,2]
[385233914,1757695833842,-157.20307173,0.00019899,2]
[385233915,1757695833851,-157.00411875,0.00019899,2]
[385233916,1757695833861,-157.0,0.00019899,2]
[385233917,1757695833870,-305.31043833,0.00019899,2]
[385233918,1757695833880,-157.0,0.00019899,2]
[385233919,1757695833890,-157.0,0.00019899,2]
[385233920,1757695833899,-157.0,0.00019899,2]
[385233921,1757695833908,-157.0,0.00019899,2]
[385233922,1757695833917,-157.0,0.00019899,2]
[385233923,1757695833927,-157.0,0.00019899,2]
[385233924,1757695833937,-500.0,0.00019899,2]
[385233925,1757695833946,-248.13637627,0.00019899,2]
[385233926,1757695833955,-7658.38236867,0.000199,2]
[385233927,1757695833964,-157.0,0.00020173,2]
[385233928,1757695833973,-157.0,0.00020173,2]
[385233929,1757695833982,-500.0,0.00020173,2]
[385233930,1757695833991,-687.611088,0.00020187,2]
[385233931,1757695834001,-320.0,0.00020394,2]
[385233932,1757695834010,-186.0,0.00020447,2]
[385233933,1757695834019,-186.0,0.00020447,2]
[385233934,1757695834029,-652.43601465,0.00020447,2]
[385233935,1757695834038,-154.80777596,0.000206,10]
[385233936,1757695834047,-151.0,0.00020644,2]
[385233937,1757695834057,-181.08010149,0.00020644,2]
[385233938,1757695834067,-151.0,0.00020644,2]
[385233939,1757695834077,-151.0,0.00020644,2]
[385233940,1757695834086,-151.0,0.00020644,2]
[385233941,1757695834096,-151.0,0.00020644,2]
[385233942,1757695834106,-151.0,0.00020644,2]
[385233943,1757695834116,-151.0,0.00020644,2]
[385233944,1757695834127,-151.0,0.00020644,2]
[385233945,1757695834136,-151.0,0.00020644,2]
[385233946,1757695834146,-151.0,0.00020644,2]
[385233947,1757695834156,-151.0,0.00020644,2]
[385233948,1757695834165,-151.0,0.00020644,2]
[385233949,1757695834175,-151.0,0.00020644,2]
[385233950,1757695834186,-151.0,0.00020644,2]
[385233951,1757695834195,-151.0,0.00020644,2]
[385233952,1757695834205,-461.57065317,0.00020823,2]
[385233953,1757695834214,-5155.91,0.00020824,10]
[385233954,1757695834223,-4296.59,0.00020824,10]
[385233955,1757695834232,-152.074427,0.00020824,2]
[385233956,1757695834241,-152.074427,0.00020824,2]
[385233957,1757695834251,-152.074427,0.00020824,2]
[385233958,1757695834260,-152.074427,0.00020824,2]
[385233959,1757695834269,-151.0,0.00020824,2]
[385233960,1757695834278,-151.0,0.00020824,2]
[385233961,1757695834287,-151.0,0.00020824,2]
[385233962,1757695834297,-151.0,0.00020824,2]
[385233963,1757695834306,-151.0,0.00020824,2]
[385233964,1757695834316,-544.635932,0.00020824,2]
[385233965,1757695834326,-544.635932,0.00020824,2]
[385233966,1757695834335,-544.635932,0.00020824,2]
[385233967,1757695834345,-544.635932,0.00020824,2]
[385233968,1757695834354,-151.0,0.00020824,2]
[385233969,1757695834363,-151.0,0.00020824,2]
[385233970,1757695834373,-216.507116,0.00020834,2]
[385233971,1757695834382,-192.983643,0.00020834,2]
[385233972,1757695834391,-151.0,0.00020834,2]
[385233973,1757695834401,-151.0,0.00020834,2]
[385233974,1757695834411,-271.50955,0.00020834,2]
[385233975,1757695834421,-151.0,0.00020834,2]
[385233976,1757695834430,-271.50955,0.00020834,2]
[385233977,1757695834440,-271.50955,0.00020834,2]
[385233978,1757695834452,-271.50955,0.00020834,2]
[385233979,1757695834461,-151.908738,0.00020834,2]
[385233980,1757695834471,-151.908738,0.00020834,2]
[385233981,1757695834480,-151.908738,0.00020834,2]
[385233982,1757695834491,-506.727001,0.00020834,2]
[385233983,1757695834500,-151.908738,0.00020834,2]
[385233984,1757695834510,-506.727001,0.00020834,2]
[385233985,1757695834519,-151.0,0.00020834,2]
[385233986,1757695834531,-506.727001,0.00020834,2]
[385233987,1757695834540,-506.727001,0.00020834,2]
[385233988,1757695834549,-151.0,0.00020834,2]
[385233989,1757695834558,-151.0,0.00020834,2]
[385233990,1757695834567,-1305.703639,0.00020834,2]
[385233991,1757695834576,-1305.703639,0.00020834,2]
[385233992,1757695834586,-1305.703639,0.00020834,2]
[385233993,1757695834596,-1305.703639,0.00020834,2]
[385233994,1757695834605,-1703.7595627,0.00020834,5]
[385233995,1757695834615,-3732.76344125,0.00020834,5]
[385233996,1757695834624,-1000.0,0.00020904,20]
[385233997,1757695834633,-244.0,0.00020904,20]
[385233998,1757695834642,-203.616579,0.00020904,2]
[385233999,1757695834651,-203.616579,0.00020904,2]
[385234000,1757695834661,-500.0,0.0002094,2]
[385234001,1757695834670,-500.0,0.0002094,2]
[385234002,1757695834679,-500.0,0.0002094,2]
[385234003,1757695834688,-500.0,0.0002094,2]
[385234004,1757695834698,-500.0,0.0002094,2]
[385234005,1757695834707,-160.0,0.0002098,10]
[385234006,1757695834716,-500.0,0.00020985,2]
[385234007,1757695834725,-500.0,0.00020985,2]
[385234008,1757695834734,-500.0,0.00020985,2]
[385234009,1757695834744,-500.0,0.00020985,2]
[385234010,1757695834753,-500.0,0.00020985,2]
[385234011,1757695834762,-500.0,0.00020985,2]
[385234012,1757695834771,-444.44085401,0.00020985,2]
[385234013,1757695834877,-72570.66890029,0.0002099,2]
[385234014,1757695834890,-5562.313738,0.0002099,2]
[385234015,1757695834901,-841.81215424,0.0002099,2]
[385234016,1757695834937,-21025.20520747,0.0002099,2]
[385234017,1757695834946,-151.0,0.0002099,2]
[385234018,1757695834956,-151.0,0.0002099,2]
[385234019,1757695834965,-151.0,0.0002099,2]
[385234020,1757695834974,-151.0,0.0002099,2]
[385234021,1757695834983,-151.0,0.0002099,2]
[385234022,1757695834992,-151.0,0.0002099,2]
[385234023,1757695835002,-151.0,0.0002099,2]
[385234024,1757695835011,-173.727909,0.0002099,2]
[385234025,1757695835020,-151.0,0.0002099,2]
[385234026,1757695835030,-151.0,0.0002099,2]
[385234027,1757695835039,-151.0,0.0002099,2]
[385234028,1757695835049,-151.0,0.0002099,2]
[385234029,1757695835059,-151.0,0.0002099,2]
[385234030,1757695835068,-151.0,0.0002099,2]
[385234031,1757695835077,-151.0,0.0002099,2]
[385234032,1757695835087,-151.0,0.0002099,2]
[385234033,1757695835097,-151.0,0.0002099,2]
[385234034,1757695835106,-151.0,0.0002099,2]
[385234035,1757695835115,-151.0,0.0002099,2]
[385234036,1757695835125,-154.0479,0.0002099,2]
[385234037,1757695835134,-151.0,0.0002099,2]
[385234038,1757695835143,-151.0,0.0002099,2]
[385234039,1757695835152,-151.0,0.0002099,2]
[385234040,1757695835161,-151.0,0.0002099,2]
[385234041,1757695835171,-151.0,0.0002099,2]
[385234042,1757695835180,-151.0,0.0002099,2]
[385234043,1757695835190,-166.932687,0.0002099,2]
[385234044,1757695835199,-151.0,0.0002099,2]
[385234045,1757695835208,-280.08011,0.0002099,2]
[385234046,1757695835218,-280.08011,0.0002099,2]
[385234047,1757695835227,-151.0,0.0002099,2]
[385234048,1757695835237,-151.0,0.0002099,2]
[385234049,1757695835247,-280.08011,0.0002099,2]
[385234050,1757695835256,-280.08011,0.0002099,2]
[385234051,1757695835266,-151.0,0.0002099,2]
[385234052,1757695835275,-151.0,0.0002099,2]
[385234053,1757695835284,-282.163842,0.0002099,2]
[385234054,1757695835294,-282.163842,0.0002099,2]
[385234055,1757695835303,-282.163842,0.0002099,2]
[385234056,1757695835312,-282.163842,0.0002099,2]
[385234057,1757695835321,-151.0,0.0002099,2]
[385234058,1757695835330,-151.0,0.0002099,2]
[385234059,1757695835339,-214.747912,0.0002099,2]
[385234060,1757695835349,-151.0,0.0002099,2]
[385234061,1757695835358,-298.754904,0.0002099,2]
[385234062,1757695835367,-298.754904,0.0002099,2]
[385234063,1757695835376,-263.47670172,0.0002099,2]
[385234160,1757695840587,-500.0,0.00017686,2]
[385234162,1757695840596,-500.0,0.00017686,2]
[385234164,1757695840605,-500.0,0.00017686,2]
[385234166,1757695840615,-500.0,0.00017686,2]
[385234168,1757695840624,-500.0,0.00017686,2]
[385234170,1757695840634,-180.0,0.00017686,2]
[385234172,1757695840643,-229.69329774,0.00017686,2]
[385234174,1757695840653,-500.0,0.00017686,2]
[385234176,1757695840662,-500.0,0.00017686,2]
[385234178,1757695840673,-500.0,0.00017686,2]
[385234180,1757695840683,-500.0,0.00017686,2]
[385234182,1757695840692,-422.78934164,0.00017686,2]
[385234184,1757695840702,-500.0,0.00017686,2]
[385234186,1757695840714,-325.95039399,0.00017686,2]
[385234189,1757695840723,-500.0,0.00017686,2]
[385234191,1757695840733,-500.0,0.00017686,2]
[385234193,1757695840742,-500.0,0.00017686,2]
[385234194,1757695840751,-379.27403636,0.00017686,2]
[385234196,1757695840761,-377.0,0.00017686,2]
[385234198,1757695840770,-575.07642932,0.00017686,2]
[385234200,1757695840779,-500.0,0.00017686,2]
[385234202,1757695840789,-430.0,0.00017686,2]
[385234204,1757695840798,-151.0,0.00020824,2]
[385234206,1757695840807,-203.616579,0.00020904,2]
[385234208,1757695840816,-151.0,0.00020904,2]
[385234210,1757695840825,-203.616579,0.00020904,2]
[385234212,1757695840836,-35.27820228,0.0002099,2]
[385234214,1757695840844,-298.754904,0.0002099,2]
[385234216,1757695840854,-151.0,0.0002099,2]
[385234218,1757695840863,-151.0,0.0002099,2]
[385234220,1757695840872,-419.14987,0.0002099,2]
[385234222,1757695840881,-419.14987,0.0002099,2]
[385234224,1757695840891,-419.14987,0.0002099,2]
[385234226,1757695840900,-419.14987,0.0002099,2]
[385234228,1757695840909,-151.0,0.0002099,2]
[385234230,1757695840918,-151.0,0.0002099,2]
[385234232,1757695840930,-151.0,0.0002099,2]
[385234234,1757695840939,-210.391168,0.0002099,2]
[385234236,1757695840948,-151.0,0.0002099,2]
[385234238,1757695840958,-210.391168,0.0002099,2]
[385234240,1757695840967,-151.0,0.0002099,2]
[385234242,1757695840977,-210.391168,0.0002099,2]
[385234244,1757695840986,-151.0,0.0002099,2]
[385234246,1757695840995,-210.391168,0.0002099,2]
[385234248,1757695841004,-151.0,0.0002099,2]
[385234250,1757695841014,-151.0,0.0002099,2]
[385234252,1757695841023,-174.589064,0.0002099,2]
[385234254,1757695841032,-151.0,0.0002099,2]
[385234256,1757695841041,-170.835855,0.0002099,2]
[385234258,1757695841051,-960.796688,0.0002099,2]
[385234260,1757695841061,-960.796688,0.0002099,2]
[385234262,1757695841071,-960.796688,0.0002099,2]
[385234264,1757695841081,-960.796688,0.0002099,2]
[385234266,1757695841090,-151.0,0.0002099,2]
[385234268,1757695841100,-151.0,0.0002099,2]
[385234269,1757695841109,-151.0,0.0002099,2]
[385234271,1757695841118,-817.86806367,0.0002099,2]
[385234273,1757695841131,-34.83105633,0.0002099,2]
[385234275,1757695841140,-852.69912,0.0002099,2]
[385234277,1757695841150,-151.0,0.0002099,2]
[385234279,1757695841159,-152.100789,0.0002099,2]
[385234281,1757695841168,-151.0,0.0002099,2]
[385234295,1757695841283,-151.0,0.0002099,2]
[385234297,1757695841293,-151.0,0.0002099,2]
[385234299,1757695841302,-151.0,0.0002099,2]
[385234301,1757695841311,-271.50955,0.0002099,2]
[385234303,1757695841320,-271.50955,0.0002099,2]
[385234305,1757695841329,-271.50955,0.0002099,2]
[385234307,1757695841339,-271.50955,0.0002099,2]
[385234309,1757695841348,-151.908738,0.0002099,2]
[385234311,1757695841357,-151.908738,0.0002099,2]
[385234312,1757695841367,-151.908738,0.0002099,2]
[385234314,1757695841377,-506.727001,0.0002099,2]
[385234316,1757695841386,-151.908738,0.0002099,2]
[385234318,1757695841395,-287.349545,0.0002099,2]
[385234320,1757695841404,-506.727001,0.0002099,2]
[385234321,1757695841413,-506.727001,0.0002099,2]
[385234323,1757695841423,-506.727001,0.0002099,2]
[385234325,1757695841433,-151.0,0.0002099,2]
[385234326,1757695841442,-151.0,0.0002099,2]